fUSD/lending_fUSD_20250105
["ID","MTS","AMOUNT","RATE_DAILY","PERIOD"]
[347756453,1736094660698,-962.38,9.863e-05,2]
[347756454,1736094660707,-500.0,9.863e-05,2]
[347756455,1736094660717,-1056.87,9.863e-05,2]
[347756456,1736094660727,-850.42,9.863e-05,2]
[347756457,1736094660736,-500.0,9.863e-05,2]
[347756458,1736094660746,-1324.44,9.863e-05,2]
[347756459,1736094660768,-500.0,9.863e-05,2]
[347756460,1736094660778,-727.28,9.863e-05,2]
[347756461,1736094660787,-1975.91,9.863e-05,2]
[347756462,1736094660797,-680.78,9.863e-05,2]
[347756463,1736094660806,-1645.11,9.863e-05,2]
[347756464,1736094660816,-2676.27,9.863e-05,2]
[347756465,1736094660825,-500.0,9.863e-05,2]
[347756466,1736094660835,-500.0,9.863e-05,2]
[347756467,1736094660844,-150.0,9.865e-05,2]
[347756468,1736094660853,-150.0,9.892e-05,2]
[347756469,1736094660863,-150.0,9.896e-05,2]
[347756470,1736094660873,-16690.06675641,9.9e-05,4]
[347756471,1736094660882,-4172.5168891,9.9e-05,4]
[347756472,1736094660892,-150.0,9.92e-05,2]
[347756473,1736094660902,-150.0,9.947e-05,2]
[347756474,1736094660912,-150.0,9.947e-05,2]
[347756475,1736094660922,-150.0,9.972e-05,2]
[347756476,1736094660932,-150.0,9.974e-05,2]
[347756477,1736094660943,-2500.0,0.0001,2]
[347756478,1736094660954,-1936.37956743,0.0001,2]
[347756479,1736094660963,-639.14982487,0.0001,2]
[347756480,1736094660973,-645.53,0.0001,2]
[347756481,1736094660984,-461914.40470464,0.0001,2]
[347756482,1736094660994,-150.0,0.00010002,2]
[347756483,1736094661153,-150.0,0.00010029,2]
[347756484,1736094661193,-150.0,0.00010049,2]
[347756485,1736094661206,-150.0,0.00010056,2]
[347756486,1736094661215,-150.0,0.00010065,2]
[347756487,1736094661226,-150.0,0.00010084,2]
[347756488,1736094661235,-1711.0,0.0001011,2]
[347756489,1736094661245,-1688.0,0.0001011,2]
[347756490,1736094661255,-150.0,0.00010111,2]
[347756491,1736094661264,-150.0,0.00010125,2]
[347756492,1736094661275,-152.73,0.00010136,2]
[347756493,1736094661284,-1515.55,0.00010136,2]
[347756494,1736094661294,-1518.88,0.00010136,2]
[347756495,1736094661303,-500.0,0.00010136,2]
[347756496,1736094661313,-500.0,0.00010136,2]
[347756497,1736094661323,-500.0,0.00010136,2]
[347756498,1736094661333,-500.0,0.00010136,2]
[347756499,1736094661344,-1230.7,0.00010136,2]
[347756500,1736094661354,-500.0,0.00010136,2]
[347756501,1736094661364,-599.16,0.00010136,2]
[347756502,1736094661373,-500.0,0.00010136,2]
[347756503,1736094661382,-500.0,0.00010136,2]
[347756504,1736094661392,-500.0,0.00010136,2]
[347756505,1736094661401,-500.0,0.00010136,2]
[347756506,1736094661414,-497.468851,0.00010136,2]
[347756507,1736094661424,-500.0,0.00010136,2]
[347756508,1736094661433,-500.0,0.00010136,2]
[347756509,1736094661443,-500.0,0.00010136,2]
[347756510,1736094661455,-500.0,0.00010136,2]
[347756511,1736094661464,-1808.48,0.00010136,2]
[347756512,1736094661474,-258.34,0.00010136,2]
[347756513,1736094661483,-500.0,0.00010136,2]
[347756514,1736094661495,-500.0,0.00010136,2]
[347756515,1736094661505,-500.0,0.00010136,2]
[347756516,1736094661515,-500.0,0.00010136,2]
[347756517,1736094661524,-716.91,0.00010136,2]
[347756518,1736094661533,-175.18196571,0.00010136,2]
[347756519,1736094661543,-500.0,0.00010136,2]
[347756520,1736094661552,-1425.76,0.00010136,2]
[347756521,1736094661562,-500.0,0.00010136,2]
[347756522,1736094661571,-1615.98,0.00010136,2]
[347756523,1736094661582,-500.0,0.00010136,2]
[347756524,1736094661591,-500.0,0.00010136,2]
[347756525,1736094661601,-500.0,0.00010136,2]
[347756526,1736094661610,-500.0,0.00010136,2]
[347756527,1736094661620,-500.0,0.00010136,2]
[347756528,1736094661630,-500.0,0.00010136,2]
[347756529,1736094661640,-2103.76,0.00010136,2]
[347756530,1736094661650,-548.94,0.00010136,2]
[347756531,1736094661660,-622.54,0.00010136,2]
[347756532,1736094661671,-588.68,0.00010136,2]
[347756533,1736094661681,-856.59,0.00010136,2]
[347756534,1736094661691,-500.0,0.00010136,2]
[347756535,1736094661702,-699.56,0.00010136,2]
[347756536,1736094661712,-500.0,0.00010136,2]
[347756537,1736094661722,-551.19,0.00010136,2]
[347756538,1736094661732,-1746.71,0.00010136,2]
[347756539,1736094661742,-500.0,0.00010136,2]
[347756540,1736094661751,-742.17,0.00010136,2]
[347756541,1736094661761,-500.0,0.00010136,2]
[347756542,1736094661771,-608.14,0.00010136,2]
[347756543,1736094661781,-558.83,0.00010136,2]
[347756544,1736094661791,-500.0,0.00010136,2]
[347756545,1736094661801,-812.77,0.00010136,2]
[347756546,1736094661810,-569.03,0.00010136,2]
[347756547,1736094661820,-500.0,0.00010136,2]
[347756548,1736094661830,-500.0,0.00010136,2]
[347756549,1736094661839,-168.74505559,0.00010136,2]
[347756550,1736094661849,-500.0,0.00010136,2]
[347756551,1736094661859,-661.71,0.00010136,2]
[347756552,1736094661868,-696.27,0.00010136,2]
[347756553,1736094661878,-687.79,0.00010136,2]
[347756554,1736094661887,-942.62,0.00010136,2]
[347756555,1736094661897,-500.0,0.00010136,2]
[347756556,1736094661906,-556.61,0.00010136,2]
[347756557,1736094661916,-719.4,0.00010136,2]
[347756558,1736094661926,-631.65,0.00010136,2]
[347756559,1736094661936,-832.23,0.00010136,2]
[347756560,1736094661946,-5015.81,0.00010136,2]
[347756561,1736094661958,-1675.1,0.00010136,2]
[347756562,1736094661968,-677.54,0.00010136,2]
[347756563,1736094661977,-543.04,0.00010136,2]
[347756564,1736094661987,-500.0,0.00010136,2]
[347756565,1736094661996,-627.27,0.00010136,2]
[347756566,1736094662006,-500.0,0.00010136,2]
[347756567,1736094662015,-1161.33,0.00010136,2]
[347756568,1736094662024,-1050.4,0.00010136,2]
[347756569,1736094662034,-500.0,0.00010136,2]
[347756570,1736094662044,-500.0,0.00010136,2]
[347756571,1736094662053,-500.0,0.00010136,2]
[347756572,1736094662063,-724.87,0.00010136,2]
[347756573,1736094662072,-500.0,0.00010136,2]
[347756574,1736094662082,-500.0,0.00010136,2]
[347756575,1736094662092,-631.04,0.00010136,2]
[347756576,1736094662101,-500.0,0.00010136,2]
[347756577,1736094662111,-594.95,0.00010136,2]
[347756578,1736094662121,-1763.27,0.00010136,2]
[347756579,1736094662131,-1113.55,0.00010136,2]
[347756580,1736094662140,-500.0,0.00010136,2]
[347756581,1736094662149,-500.0,0.00010136,2]
[347756582,1736094662159,-500.0,0.00010136,2]
[347756583,1736094662168,-752.27,0.00010136,2]
[347756584,1736094662177,-500.0,0.00010136,2]
[347756585,1736094662187,-714.85,0.00010136,2]
[347756586,1736094662197,-816.25,0.00010136,2]
[347756587,1736094662206,-620.8,0.00010136,2]
[347756588,1736094662215,-500.0,0.00010136,2]
[347756589,1736094662227,-621.01,0.00010136,2]
[347756590,1736094662236,-248.89,0.00010136,2]
[347756591,1736094662246,-500.0,0.00010136,2]
[347756592,1736094662256,-541.62,0.00010136,2]
[347756593,1736094662265,-500.0,0.00010136,2]
[347756594,1736094662275,-601.13,0.00010136,2]
[347756595,1736094662284,-738.48,0.00010136,2]
[347756596,1736094662295,-500.0,0.00010136,2]
[347756597,1736094662306,-500.0,0.00010136,2]
[347756598,1736094662317,-278.47070538,0.00010136,2]
[347756599,1736094662327,-1683.47,0.00010136,2]
[347756600,1736094662337,-745.35,0.00010136,2]
[347756601,1736094662347,-3134.03,0.00010136,2]
[347756602,1736094662356,-836.0,0.00010136,2]
[347756603,1736094662365,-736.47,0.00010136,2]
[347756604,1736094662374,-500.0,0.00010136,2]
[347756605,1736094662384,-500.0,0.00010136,2]
[347756606,1736094662394,-580.42,0.00010136,2]
[347756607,1736094662404,-500.0,0.00010136,2]
[347756608,1736094662420,-500.0,0.00010136,2]
[347756609,1736094662431,-500.0,0.00010136,2]
[347756610,1736094662442,-520.75,0.00010136,2]
[347756611,1736094662454,-500.0,0.00010136,2]
[347756612,1736094662464,-500.0,0.00010136,2]
[347756613,1736094662474,-1689.29,0.00010136,2]
[347756614,1736094662483,-565.23,0.00010136,2]
[347756615,1736094662494,-589.8,0.00010136,2]
[347756616,1736094662505,-683.29,0.00010136,2]
[347756617,1736094662515,-500.0,0.00010136,2]
[347756618,1736094662529,-1085.9,0.00010136,2]
[347756619,1736094662539,-500.0,0.00010136,2]
[347756620,1736094662549,-500.0,0.00010136,2]
[347756621,1736094662558,-741.9,0.00010136,2]
[347756622,1736094662568,-1035.34,0.00010136,2]
[347756623,1736094662578,-500.0,0.00010136,2]
[347756624,1736094662588,-500.0,0.00010136,2]
[347756625,1736094662598,-500.0,0.00010136,2]
[347756626,1736094662608,-500.0,0.00010136,2]
[347756627,1736094662618,-500.0,0.00010136,2]
[347756628,1736094662627,-500.0,0.00010136,2]
[347756629,1736094662638,-500.0,0.00010136,2]
[347756630,1736094662647,-1834.08,0.00010136,2]
[347756631,1736094662657,-500.0,0.00010136,2]
[347756632,1736094662667,-552.82,0.00010136,2]
[347756633,1736094662676,-731.46,0.00010136,2]
[347756634,1736094662686,-904.93,0.00010136,2]
[347756635,1736094662696,-500.0,0.00010136,2]
[347756636,1736094662706,-500.0,0.00010136,2]
[347756637,1736094662716,-557.27,0.00010136,2]
[347756638,1736094662726,-793.93,0.00010136,2]
[347756639,1736094662736,-500.0,0.00010136,2]
[347756640,1736094662746,-811.3,0.00010136,2]
[347756641,1736094662756,-527.7,0.00010136,2]
[347756642,1736094662766,-500.0,0.00010136,2]
[347756643,1736094662776,-500.0,0.00010136,2]
[347756644,1736094662786,-1036.67,0.00010136,2]
[347756645,1736094662796,-509.44,0.00010136,2]
[347756646,1736094662806,-500.0,0.00010136,2]
[347756647,1736094662816,-1405.71,0.00010136,2]
[347756648,1736094662826,-500.0,0.00010136,2]
[347756649,1736094662836,-1347.13,0.00010136,2]
[347756650,1736094662845,-1532.82,0.00010136,2]
[347756651,1736094662855,-500.0,0.00010136,2]
[347756652,1736094662865,-500.0,0.00010136,2]
[347756653,1736094662875,-2813.87,0.00010136,2]
[347756654,1736094662884,-799.48,0.00010136,2]
[347756655,1736094662894,-605.75,0.00010136,2]
[347756656,1736094662903,-485.2,0.00010136,2]
[347756657,1736094662913,-500.0,0.00010136,2]
[347756658,1736094662923,-659.28,0.00010136,2]
[347756659,1736094662933,-2763.67,0.00010136,2]
[347756660,1736094662943,-500.0,0.00010136,2]
[347756661,1736094662954,-500.0,0.00010136,2]
[347756662,1736094662963,-770.84,0.00010136,2]
[347756663,1736094662973,-589.68,0.00010136,2]
[347756664,1736094662983,-500.0,0.00010136,2]
[347756665,1736094662992,-500.0,0.00010136,2]
[347756666,1736094663002,-3068.98,0.00010136,2]
[347756667,1736094663012,-633.08,0.00010136,2]
[347756668,1736094663022,-779.8,0.00010136,2]
[347756669,1736094663032,-964.94,0.00010136,2]
[347756670,1736094663042,-1712.37,0.00010136,2]
[347756671,1736094663052,-848.67,0.00010136,2]
[347756672,1736094663062,-2292.04,0.00010136,2]
[347756673,1736094663072,-500.0,0.00010136,2]
[347756674,1736094663082,-500.0,0.00010136,2]
[347756675,1736094663091,-504.97,0.00010136,2]
[347756676,1736094663101,-769.22,0.00010136,2]
[347756677,1736094663111,-698.27,0.00010136,2]
[347756678,1736094663122,-469.23164186,0.00010136,2]
[347756679,1736094663133,-800.13,0.00010136,2]
[347756680,1736094663143,-1626.49,0.00010136,2]
[347756681,1736094663153,-1071.25,0.00010136,2]
[347756682,1736094663163,-500.0,0.00010136,2]
[347756683,1736094663174,-1089.62,0.00010136,2]
[347756684,1736094663185,-1143.16,0.00010136,2]
[347756685,1736094663195,-565.51,0.00010136,2]
[347756686,1736094663206,-972.29,0.00010136,2]
[347756687,1736094663216,-1044.39,0.00010136,2]
[347756688,1736094663226,-500.0,0.00010136,2]
[347756689,1736094663236,-500.18,0.00010136,2]
[347756690,1736094663246,-508.44,0.00010136,2]
[347756691,1736094663256,-500.0,0.00010136,2]
[347756692,1736094663266,-2154.529193,0.00010136,2]
[347756693,1736094663276,-573.87,0.00010136,2]
[347756694,1736094663286,-3065.2,0.00010136,2]
[347756695,1736094663296,-160.465046,0.00010136,2]
[347756696,1736094663306,-1194.71,0.00010136,2]
[347756697,1736094663316,-585.92,0.00010136,2]
[347756698,1736094663326,-155.826197,0.00010136,2]
[347756699,1736094663336,-500.0,0.00010136,2]
[347756700,1736094663346,-765.52,0.00010136,2]
[347756701,1736094663356,-640.34,0.00010136,2]
[347756702,1736094663366,-3836.73,0.00010136,2]
[347756703,1736094663376,-633.45,0.00010136,2]
[347756704,1736094663386,-1291.16,0.00010136,2]
[347756705,1736094663396,-1192.98,0.00010136,2]
[347756706,1736094663405,-733.94,0.00010136,2]
[347756707,1736094663419,-2011.44575,0.00010136,2]
[347756708,1736094663428,-668.19,0.00010136,2]
[347756709,1736094663438,-722.24,0.00010136,2]
[347756710,1736094663448,-525.52,0.00010136,2]
[347756711,1736094663459,-2191.22,0.00010136,2]
[347756712,1736094663468,-1871.54,0.00010136,2]
[347756713,1736094663478,-3576.39,0.00010136,2]
[347756714,1736094663489,-1429.21,0.00010136,2]
[347756715,1736094663500,-1747.17,0.00010136,2]
[347756716,1736094663510,-6128.46,0.00010136,2]
[347756717,1736094663520,-554.84,0.00010136,2]
[347756718,1736094663530,-500.0,0.00010136,2]
[347756719,1736094663539,-813.74,0.00010136,2]
[347756720,1736094663550,-1657.86,0.00010136,2]
[347756721,1736094663559,-515.2,0.00010136,2]
[347756722,1736094663569,-3771.13,0.00010136,2]
[347756723,1736094663580,-500.0,0.00010136,2]
[347756724,1736094663589,-823.18,0.00010136,2]
[347756725,1736094663599,-902.42,0.00010136,2]
[347756726,1736094663608,-795.93,0.00010136,2]
[347756727,1736094663618,-500.0,0.00010136,2]
[347756728,1736094663627,-710.7,0.00010136,2]
[347756729,1736094663637,-1012.76,0.00010136,2]
[347756730,1736094663647,-890.9,0.00010136,2]
[347756731,1736094663714,-1433.4,0.00010136,2]
[347756732,1736094663724,-500.0,0.00010136,2]
[347756733,1736094663734,-5091.48,0.00010136,2]
[347756734,1736094663744,-4235.77,0.00010136,2]
[347756735,1736094663753,-1053.35,0.00010136,2]
[347756736,1736094663763,-158.30937,0.00010136,2]
[347756737,1736094663772,-992.85,0.00010136,2]
[347756738,1736094663782,-624.79,0.00010136,2]
[347756739,1736094663793,-633.76,0.00010136,2]
[347756740,1736094663803,-578.47,0.00010136,2]
[347756741,1736094663813,-2200.96,0.00010136,2]
[347756742,1736094663823,-1537.22,0.00010136,2]
[347756743,1736094663833,-900.08,0.00010136,2]
[347756744,1736094663842,-4458.65,0.00010136,2]
[347756745,1736094663852,-4463.52,0.00010136,2]
[347756746,1736094663863,-163.360118,0.00010136,2]
[347756747,1736094663873,-1934.39,0.00010136,2]
[347756748,1736094663883,-1315.15,0.00010136,2]
[347756749,1736094663893,-546.5,0.00010136,2]
[347756750,1736094663903,-500.0,0.00010136,2]
[347756751,1736094663913,-510.63,0.00010136,2]
[347756752,1736094663923,-748.91,0.00010136,2]
[347756753,1736094663933,-3147.69,0.00010136,2]
[347756754,1736094663943,-500.0,0.00010136,2]
[347756755,1736094663954,-571.68,0.00010136,2]
[347756756,1736094663964,-500.0,0.00010136,2]
[347756757,1736094663974,-519.79,0.00010136,2]
[347756758,1736094663983,-857.37,0.00010136,2]
[347756759,1736094663994,-772.45,0.00010136,2]
[347756760,1736094664004,-2261.04,0.00010136,2]
[347756761,1736094664013,-500.0,0.00010136,2]
[347756762,1736094664023,-574.97,0.00010136,2]
[347756763,1736094664033,-1517.49,0.00010136,2]
[347756764,1736094664043,-1136.66,0.00010136,2]
[347756765,1736094664052,-601.24,0.00010136,2]
[347756766,1736094664062,-3679.45,0.00010136,2]
[347756767,1736094664072,-801.92,0.00010136,2]
[347756768,1736094664082,-2296.67,0.00010136,2]
[347756769,1736094664092,-511.65,0.00010136,2]
[347756770,1736094664101,-716.67,0.00010136,2]
[347756771,1736094664111,-500.0,0.00010136,2]
[347756772,1736094664120,-1000.95,0.00010136,2]
[347756773,1736094664130,-2823.47,0.00010136,2]
[347756774,1736094664140,-869.41,0.00010136,2]
[347756775,1736094664150,-702.57,0.00010136,2]
[347756776,1736094664160,-1961.5,0.00010136,2]
[347756777,1736094664170,-1511.92,0.00010136,2]
[347756778,1736094664179,-980.35,0.00010136,2]
[347756779,1736094664190,-152.483732,0.00010136,2]
[347756780,1736094664200,-1573.26,0.00010136,2]
[347756781,1736094664210,-716.72,0.00010136,2]
[347756782,1736094664220,-3227.6,0.00010136,2]
[347756783,1736094664230,-685.49,0.00010136,2]
[347756784,1736094664240,-812.36,0.00010136,2]
[347756785,1736094664250,-1820.78,0.00010136,2]
[347756786,1736094664260,-2219.13,0.00010136,2]
[347756787,1736094664270,-574.8,0.00010136,2]
[347756788,1736094664280,-826.26,0.00010136,2]
[347756789,1736094664290,-1688.51,0.00010136,2]
[347756790,1736094664300,-1052.05,0.00010136,2]
[347756791,1736094664310,-3518.04,0.00010136,2]
[347756792,1736094664320,-659.66,0.00010136,2]
[347756793,1736094664330,-1016.28,0.00010136,2]
[347756794,1736094664340,-500.0,0.00010136,2]
[347756795,1736094664350,-500.0,0.00010136,2]
[347756796,1736094664359,-500.0,0.00010136,2]
[347756797,1736094664369,-588.33,0.00010136,2]
[347756798,1736094664379,-753.31,0.00010136,2]
[347756799,1736094664389,-500.0,0.00010136,2]
[347756800,1736094664399,-2262.5,0.00010136,2]
[347756801,1736094664410,-500.0,0.00010136,2]
[347756802,1736094664421,-6438.35,0.00010136,2]
[347756803,1736094664430,-874.96,0.00010136,2]
[347756804,1736094664438,-913.17,0.00010136,2]
[347756805,1736094664448,-919.19,0.00010136,2]
[347756806,1736094664459,-500.0,0.00010136,2]
[347756807,1736094664468,-1116.37,0.00010136,2]
[347756808,1736094664478,-648.72,0.00010136,2]
[347756809,1736094664489,-1766.84,0.00010136,2]
[347756810,1736094664498,-758.57,0.00010136,2]
[347756811,1736094664509,-506.41,0.00010136,2]
[347756812,1736094664519,-1972.52,0.00010136,2]
[347756813,1736094664529,-863.83,0.00010136,2]
[347756814,1736094664539,-500.0,0.00010136,2]
[347756815,1736094664549,-500.0,0.00010136,2]
[347756816,1736094664559,-500.0,0.00010136,2]
[347756817,1736094664568,-500.0,0.00010136,2]
[347756818,1736094664579,-500.0,0.00010136,2]
[347756819,1736094664589,-962.38,0.00010136,2]
[347756820,1736094664598,-1056.87,0.00010136,2]
[347756821,1736094664608,-500.0,0.00010136,2]
[347756822,1736094664617,-1324.44,0.00010136,2]
[347756823,1736094664628,-727.28,0.00010136,2]
[347756824,1736094664638,-1975.91,0.00010136,2]
[347756825,1736094664647,-680.78,0.00010136,2]
[347756826,1736094664658,-1645.11,0.00010136,2]
[347756827,1736094664668,-500.0,0.00010136,2]
[347756828,1736094664678,-2676.27,0.00010136,2]
[347756829,1736094664688,-500.0,0.00010136,2]
[347756830,1736094664697,-159.6,0.00010137,2]
[347756831,1736094664711,-150.0,0.00010138,2]
[347756832,1736094664721,-150.0,0.00010166,2]
[347756833,1736094664731,-150.0,0.00010184,2]
[347756834,1736094664741,-150.0,0.00010193,2]
[347756835,1736094664751,-7223.83900933,0.000102,2]
[347756836,1736094664762,-150.0,0.00010201,2]
[347756837,1736094664773,-150.0,0.0001022,2]
[347756838,1736094664783,-150.0,0.00010248,2]
[347756839,1736094664794,-150.0,0.00010275,2]
[347756840,1736094664803,-150.0,0.00010277,2]
[347756841,1736094664813,-150.0,0.00010302,2]
[347756842,1736094664823,-150.0,0.00010302,2]
[347756843,1736094664834,-208.0,0.0001031,2]
[347756844,1736094664843,-150.0,0.0001033,2]
[347756845,1736094664854,-150.0,0.00010353,2]
[347756846,1736094664863,-150.0,0.00010357,2]
[347756847,1736094664873,-150.0,0.00010384,2]
[347756848,1736094664883,-1000.0,0.00010409,2]
[347756849,1736094664892,-500.0,0.0001041,2]
[347756850,1736094664902,-500.0,0.0001041,2]
[347756851,1736094664911,-500.0,0.0001041,2]
[347756852,1736094664921,-500.0,0.0001041,2]
[347756853,1736094664931,-1230.7,0.0001041,2]
[347756854,1736094664941,-500.0,0.0001041,2]
[347756855,1736094664952,-599.16,0.0001041,2]
[347756856,1736094664962,-500.0,0.0001041,2]
[347756857,1736094664972,-500.0,0.0001041,2]
[347756858,1736094664982,-500.0,0.0001041,2]
[347756859,1736094664992,-500.0,0.0001041,2]
[347756860,1736094665001,-500.0,0.0001041,2]
[347756861,1736094665010,-500.0,0.0001041,2]
[347756862,1736094665020,-500.0,0.0001041,2]
[347756863,1736094665030,-500.0,0.0001041,2]
[347756864,1736094665040,-1808.48,0.0001041,2]
[347756865,1736094665050,-500.0,0.0001041,2]
[347756866,1736094665059,-500.0,0.0001041,2]
[347756867,1736094665069,-500.0,0.0001041,2]
[347756868,1736094665079,-500.0,0.0001041,2]
[347756869,1736094665089,-716.91,0.0001041,2]
[347756870,1736094665098,-500.0,0.0001041,2]
[347756871,1736094665108,-1425.76,0.0001041,2]
[347756872,1736094665118,-500.0,0.0001041,2]
[347756873,1736094665127,-1615.98,0.0001041,2]
[347756874,1736094665137,-500.0,0.0001041,2]
[347756875,1736094665147,-500.0,0.0001041,2]
[347756876,1736094665156,-500.0,0.0001041,2]
[347756877,1736094665166,-500.0,0.0001041,2]
[347756878,1736094665175,-500.0,0.0001041,2]
[347756879,1736094665185,-500.0,0.0001041,2]
[347756880,1736094665195,-2103.76,0.0001041,2]
[347756881,1736094665205,-548.94,0.0001041,2]
[347756882,1736094665215,-622.54,0.0001041,2]
[347756883,1736094665224,-588.68,0.0001041,2]
[347756884,1736094665234,-856.59,0.0001041,2]
[347756885,1736094665243,-500.0,0.0001041,2]
[347756886,1736094665252,-699.56,0.0001041,2]
[347756887,1736094665261,-500.0,0.0001041,2]
[347756888,1736094665271,-551.19,0.0001041,2]
[347756889,1736094665280,-1746.71,0.0001041,2]
[347756890,1736094665290,-500.0,0.0001041,2]
[347756891,1736094665299,-742.17,0.0001041,2]
[347756892,1736094665308,-500.0,0.0001041,2]
[347756893,1736094665318,-608.14,0.0001041,2]
[347756894,1736094665327,-558.83,0.0001041,2]
[347756895,1736094665336,-500.0,0.0001041,2]
[347756896,1736094665346,-812.77,0.0001041,2]
[347756897,1736094665355,-569.03,0.0001041,2]
[347756898,1736094665365,-500.0,0.0001041,2]
[347756899,1736094665374,-500.0,0.0001041,2]
[347756900,1736094665383,-500.0,0.0001041,2]
[347756901,1736094665393,-661.71,0.0001041,2]
[347756902,1736094665402,-696.27,0.0001041,2]
[347756903,1736094665415,-687.79,0.0001041,2]
[347756904,1736094665424,-942.62,0.0001041,2]
[347756905,1736094665434,-500.0,0.0001041,2]
[347756906,1736094665443,-556.61,0.0001041,2]
[347756907,1736094665454,-719.4,0.0001041,2]
[347756908,1736094665464,-631.65,0.0001041,2]
[347756909,1736094665473,-832.23,0.0001041,2]
[347756910,1736094665482,-1675.1,0.0001041,2]
[347756911,1736094665493,-5015.81,0.0001041,2]
[347756912,1736094665505,-677.54,0.0001041,2]
[347756913,1736094665515,-543.04,0.0001041,2]
[347756914,1736094665524,-500.0,0.0001041,2]
[347756915,1736094665534,-627.27,0.0001041,2]
[347756916,1736094665543,-500.0,0.0001041,2]
[347756917,1736094665552,-1161.33,0.0001041,2]
[347756918,1736094665563,-1050.4,0.0001041,2]
[347756919,1736094665573,-500.0,0.0001041,2]
[347756920,1736094665583,-500.0,0.0001041,2]
[347756921,1736094665593,-500.0,0.0001041,2]
[347756922,1736094665603,-724.87,0.0001041,2]
[347756923,1736094665613,-500.0,0.0001041,2]
[347756924,1736094665622,-500.0,0.0001041,2]
[347756925,1736094665632,-631.04,0.0001041,2]
[347756926,1736094665641,-500.0,0.0001041,2]
[347756927,1736094665651,-594.95,0.0001041,2]
[347756928,1736094665660,-1113.55,0.0001041,2]
[347756929,1736094665670,-1763.27,0.0001041,2]
[347756930,1736094665680,-500.0,0.0001041,2]
[347756931,1736094665689,-500.0,0.0001041,2]
[347756932,1736094665698,-500.0,0.0001041,2]
[347756933,1736094665709,-752.27,0.0001041,2]
[347756934,1736094665718,-500.0,0.0001041,2]
[347756935,1736094665728,-714.85,0.0001041,2]
[347756936,1736094665738,-816.25,0.0001041,2]
[347756937,1736094665747,-620.8,0.0001041,2]
[347756938,1736094665757,-500.0,0.0001041,2]
[347756939,1736094665767,-621.01,0.0001041,2]
[347756940,1736094665776,-500.0,0.0001041,2]
[347756941,1736094665785,-541.62,0.0001041,2]
[347756942,1736094665795,-500.0,0.0001041,2]
[347756943,1736094665804,-601.13,0.0001041,2]
[347756944,1736094665814,-738.48,0.0001041,2]
[347756945,1736094665824,-500.0,0.0001041,2]
[347756946,1736094665834,-500.0,0.0001041,2]
[347756947,1736094665843,-1683.47,0.0001041,2]
[347756948,1736094665853,-745.35,0.0001041,2]
[347756949,1736094665863,-3134.03,0.0001041,2]
[347756950,1736094665872,-836.0,0.0001041,2]
[347756951,1736094665882,-736.47,0.0001041,2]
[347756952,1736094665892,-500.0,0.0001041,2]